bitfinex/quotes_BTCUSD_20250129
["timestamp","ask_amount","ask_price","bid_price","bid_amount"]
[1738174856277,0.589419,102320.0,102300.0,0.22361755]
[1738174856485,0.73503,102320.0,102300.0,0.41911155]
[1738174856664,0.53955,102320.0,102300.0,0.41911155]
[1738174856868,0.342076,102320.0,102300.0,0.41911155]
[1738174857077,0.342076,102320.0,102300.0,0.22361755]
[1738174857078,0.14783483,102310.0,102300.0,0.22361755]
[1738174857275,0.14783483,102310.0,102300.0,0.22461755]
[1738174857518,0.16593866,102310.0,102300.0,0.22461755]
[1738174857722,0.01932566,102310.0,102300.0,0.22461755]
[1738174857937,0.01810383,102310.0,102300.0,0.22561755]
[1738174858149,0.16593874,102310.0,102300.0,0.22461755]
[1738174858442,0.16593874,102310.0,102300.0,0.22561755]
[1738174859357,0.16593874,102310.0,102300.0,0.07899055]
[1738174859552,0.2631819,102310.0,102300.0,0.00219055]
[1738174859732,0.24385616,102310.0,102300.0,0.00219055]
[1738174860463,0.56653771,102320.0,102300.0,0.14881755]
[1738174860669,0.85926087,102320.0,102300.0,0.34431955]
[1738174860897,0.14783491,102310.0,102300.0,0.00219055]
[1738174861115,0.38417681,102310.0,102300.0,0.00219055]
[1738174861326,0.45825481,102310.0,102300.0,0.00219055]
[1738174861532,0.50745481,102310.0,102300.0,0.00219055]
[1738174862182,0.47843224,102310.0,102300.0,0.00219055]
[1738174863199,0.913289,102310.0,102300.0,0.00219055]
[1738174863837,1.086289,102310.0,102300.0,0.00019055]
[1738174864056,1.076289,102310.0,102300.0,0.00019055]
[1738174864271,1.20599143,102310.0,102300.0,5.5e-07]
[1738174864482,0.18925335,102300.0,102290.0,0.0001422]
[1738174864694,0.72880543,102300.0,102290.0,0.0001422]
[1738174865115,0.537765,102280.0,102260.0,0.2500263]
[1738174865326,0.342207,102280.0,102270.0,0.0832]
[1738174865538,0.537761,102280.0,102260.0,0.5751157]
[1738174865745,0.537761,102280.0,102260.0,0.57474205]
[1738174865948,0.733315,102280.0,102260.0,0.5751157]
[1738174866835,0.537761,102280.0,102260.0,0.5751157]
[1738174867016,0.14667,102270.0,102260.0,0.23248705]
[1738174867220,0.22411234,102270.0,102260.0,0.10348705]
[1738174867422,0.22288997,102270.0,102260.0,0.10448705]
[1738174868176,0.52700623,102270.0,102260.0,0.00128705]
[1738174868378,0.67700623,102270.0,102260.0,0.00128705]
[1738174868594,0.67700623,102270.0,102260.0,0.00228705]
[1738174868739,0.50398924,102270.0,102260.0,0.00128705]
[1738174869362,0.50798924,102270.0,102260.0,0.00128705]
[1738174870971,0.50798924,102270.0,102260.0,0.00028705]
[1738174871342,0.51298924,102270.0,102260.0,0.00128705]
[1738174873895,0.52298924,102270.0,102260.0,0.00128705]
[1738174876900,0.54598924,102270.0,102260.0,0.00128705]
[1738174878123,0.56561559,102270.0,102260.0,0.00128705]
[1738174878332,0.67569167,102270.0,102260.0,0.00128705]
[1738174878960,0.56561559,102270.0,102260.0,0.00128705]
[1738174879667,0.67569167,102270.0,102260.0,0.00128705]
[1738174879977,0.74379167,102270.0,102260.0,0.00128705]
[1738174880178,0.88664843,102270.0,102260.0,0.00128705]
[1738174880392,0.76966532,102270.0,102260.0,0.00128705]
[1738174881702,0.76966532,102270.0,102260.0,5e-08]
[1738174882178,0.306713,102240.0,102230.0,0.000142]
[1738174882367,0.77300832,102240.0,102230.0,0.00019023]
[1738174882843,0.66293224,102240.0,102230.0,0.00019023]
[1738174884216,0.58563224,102240.0,102230.0,0.00019023]
[1738174884456,0.50403224,102240.0,102230.0,0.00019023]
[1738174884650,0.51303224,102240.0,102230.0,0.00119023]
[1738174884911,0.51603224,102240.0,102230.0,0.00119023]
[1738174887082,0.83853224,102240.0,102230.0,0.00119023]
[1738174887294,0.72845616,102240.0,102230.0,0.08439023]
[1738174887450,0.57845616,102240.0,102230.0,0.08439023]
[1738174887649,0.72845616,102240.0,102230.0,0.08439023]
[1738174888564,0.60733444,102240.0,102230.0,0.08439023]
[1738174888794,0.36337828,102240.0,102230.0,0.23111723]
[1738174889199,0.04087828,102240.0,102230.0,0.23149088]
[1738174891342,0.012,102240.0,102230.0,0.23149088]
[1738174892436,0.012,102240.0,102230.0,0.33149088]
[1738174892997,0.02422775,102240.0,102230.0,0.33149088]
[1738174893430,0.01522775,102240.0,102230.0,0.33049088]
[1738174893632,0.01222775,102240.0,102230.0,0.33049088]
[1738174894308,0.37117928,102250.0,102230.0,0.33249088]
[1738174894476,0.14793569,102240.0,102230.0,0.23211723]
[1738174894680,0.146713,102240.0,102230.0,0.08539023]
[1738174894876,0.14793569,102240.0,102230.0,0.08539023]
[1738174895493,0.14793569,102240.0,102230.0,0.00219023]
[1738174895695,0.27405713,102240.0,102230.0,0.00219023]
[1738174895904,0.27283444,102240.0,102230.0,0.00219023]
[1738174896955,0.342311,102250.0,102240.0,0.0827]
[1738174897197,0.43955416,102250.0,102240.0,0.0827]
[1738174898364,0.45255416,102250.0,102240.0,0.0837]
[1738174898570,0.355311,102250.0,102240.0,0.0837]
[1738174898794,0.159699,102250.0,102240.0,0.230413]
[1738174899215,0.013,102250.0,102240.0,0.230413]
[1738174899351,0.159699,102250.0,102240.0,0.230413]
[1738174900422,0.013,102250.0,102240.0,0.230413]
[1738174900627,0.013,102250.0,102240.0,0.37698665]
[1738174901893,0.25694216,102250.0,102240.0,0.10137365]
[1738174902115,0.36701824,102250.0,102240.0,0.001]
[1738174902319,0.39604166,102250.0,102240.0,0.001]
[1738174903687,0.36701824,102250.0,102240.0,0.001]
[1738174904476,0.25694216,102250.0,102240.0,0.001]
[1738174904719,0.36701824,102250.0,102240.0,0.001]
[1738174906032,0.25694216,102250.0,102240.0,0.001]
[1738174906463,0.159699,102250.0,102240.0,0.0843]
[1738174907084,0.013,102250.0,102240.0,0.23138665]
[1738174907340,0.013,102250.0,102240.0,0.33138665]
[1738174907545,0.013,102250.0,102240.0,0.37978665]
[1738174907694,0.04204535,102250.0,102240.0,0.37978665]
[1738174908134,0.18874435,102250.0,102240.0,0.37978665]
[1738174908338,0.04204535,102250.0,102240.0,0.37978665]
[1738174911475,0.18874435,102250.0,102240.0,0.37978665]
[1738174911679,0.18874435,102250.0,102240.0,0.27978665]
[1738174911893,0.18874435,102250.0,102240.0,0.001]
[1738174911894,0.39728616,102250.0,102240.0,0.001]
[1738174912100,0.39606359,102250.0,102240.0,0.001]
[1738174912997,0.39606359,102250.0,102240.0,0.00137365]
[1738174912998,0.28598751,102250.0,102240.0,0.00137365]
[1738174913935,0.39606359,102250.0,102240.0,0.001]
[1738174914134,0.28598751,102250.0,102240.0,0.001]
[1738174914968,0.28598751,102250.0,102240.0,0.00137365]
[1738174915171,0.18874435,102250.0,102240.0,0.00137365]
[1738174915746,0.18874435,102250.0,102240.0,0.14808665]
[1738174916136,0.04204535,102250.0,102240.0,0.147713]
[1738174916343,0.04204535,102250.0,102240.0,0.27958665]
[1738174916578,0.18874435,102250.0,102240.0,0.13287365]
[1738174916771,0.159699,102250.0,102240.0,0.13287365]
[1738174916947,0.16092157,102250.0,102240.0,0.08457365]
[1738174917524,0.16092157,102250.0,102240.0,0.00137365]
[1738174918481,0.16092157,102250.0,102240.0,0.001]
[1738174918728,0.54728616,102250.0,102240.0,0.001]
[1738174918930,0.54606359,102250.0,102240.0,0.001]
[1738174919962,0.51701824,102250.0,102240.0,0.001]
[1738174920980,0.51701824,102250.0,102240.0,0.0011424]
[1738174922236,0.52700648,102250.0,102240.0,0.0011424]
[1738174928318,0.52700648,102250.0,102240.0,0.0011424]
[1738174928642,0.4169304,102250.0,102240.0,0.0011424]
[1738174928863,0.52700648,102250.0,102240.0,0.0011424]
[1738174929091,0.4169304,102250.0,102240.0,0.0011424]
[1738174929296,0.013,102250.0,102240.0,0.2259554]
[1738174929509,0.159699,102250.0,102240.0,0.0792424]
[1738174930164,0.159699,102250.0,102240.0,0.2259554]
[1738174930574,0.013,102250.0,102240.0,0.2259554]
[1738174930978,0.013,102250.0,102240.0,0.22632905]
[1738174931395,0.013,102250.0,102240.0,0.14822905]
[1738174931607,0.159699,102250.0,102240.0,0.14822905]
[1738174932009,0.013,102250.0,102240.0,0.14822905]
[1738174932211,0.159699,102250.0,102240.0,0.14822905]
[1738174932645,0.013,102250.0,102240.0,0.22342905]
[1738174933484,0.159699,102250.0,102240.0,0.0763424]
[1738174933689,0.59591824,102250.0,102240.0,0.0011424]
[1738174933920,0.73899432,102250.0,102240.0,0.0011424]
[1738174934120,0.62891824,102250.0,102240.0,0.0011424]
[1738174935088,0.48221924,102250.0,102220.0,0.07884848]
[1738174935306,0.146727,102230.0,102220.0,0.07847483]
[1738174935506,0.14794986,102230.0,102220.0,0.07847483]
[1738174936042,0.14794986,102230.0,102220.0,0.07884848]
[1738174936767,0.1770272,102230.0,102220.0,0.07847483]
[1738174936966,0.146742,102220.0,102210.0,0.0473423]
[1738174937185,0.146742,102220.0,102210.0,0.0001423]
[1738174937186,0.25681808,102220.0,102210.0,0.0001423]
[1738174938262,0.35406124,102220.0,102210.0,0.0001423]
[1738174938467,0.35406124,102220.0,102210.0,0.0011423]
[1738174939027,0.56709834,102230.0,102210.0,0.3435733]
[1738174939222,0.37145234,102230.0,102220.0,0.0805]
[1738174939445,0.02907734,102230.0,102220.0,0.227242]
[1738174939652,0.02907734,102230.0,102220.0,0.32761565]
[1738174940668,0.03107734,102230.0,102220.0,0.32761565]
[1738174941154,0.002,102230.0,102220.0,0.32761565]
[1738174942648,0.002,102230.0,102220.0,0.22761565]
[1738174943065,0.14994977,102230.0,102220.0,0.227242]
[1738174943271,0.25880308,102230.0,102220.0,0.146742]
[1738174943474,0.148727,102230.0,102220.0,0.146742]
[1738174943704,0.148727,102230.0,102220.0,0.14711565]
[1738174943948,0.344372,102230.0,102210.0,0.48281195]
[1738174944205,0.14796487,102220.0,102210.0,0.23795195]
[1738174944410,0.65010608,102230.0,102210.0,0.4332423]
[1738174944609,0.146742,102220.0,102210.0,0.2258983]
[1738174944818,0.146742,102220.0,102210.0,0.22627195]
[1738174945424,0.146742,102220.0,102210.0,0.2258983]
[1738174945584,0.35528418,102220.0,102210.0,0.0001423]
[1738174945785,0.35406124,102220.0,102210.0,0.0001423]
[1738174945987,0.24398516,102220.0,102210.0,0.0001423]
[1738174946451,0.24398516,102220.0,102210.0,0.0011423]
[1738174946657,0.24398516,102220.0,102210.0,0.0001423]
[1738174946803,0.24306251,102220.0,102210.0,0.0001423]
[1738174947018,0.24306251,102220.0,102210.0,0.0011423]
[1738174947216,0.24306251,102220.0,102210.0,0.0001423]
[1738174947659,0.27413985,102220.0,102210.0,0.0001423]
[1738174947860,0.03107734,102220.0,102210.0,0.1468983]
[1738174948863,0.03107734,102220.0,102210.0,0.26927195]
[1738174949254,0.02907734,102220.0,102210.0,0.26927195]
[1738174949447,0.02906109,102220.0,102210.0,0.46494395]
[1738174949659,0.02906109,102220.0,102210.0,0.46594395]
[1738174949874,0.02906109,102220.0,102210.0,0.46494395]
[1738174950370,0.02906109,102220.0,102210.0,0.0759423]
[1738174950371,0.17702595,102220.0,102210.0,0.0759423]
[1738174950597,0.17702595,102220.0,102210.0,0.0011423]
[1738174950844,0.24520802,102220.0,102210.0,0.0011423]
[1738174951118,0.35406124,102220.0,102210.0,0.0001423]
[1738174951896,0.24398516,102220.0,102210.0,0.0001423]
[1738174952153,0.50406124,102220.0,102210.0,0.0001423]
[1738174952413,0.50606124,102220.0,102210.0,0.0001423]
[1738174952861,0.53311255,102220.0,102210.0,0.0001423]
[1738174953112,0.54211255,102220.0,102210.0,0.0011423]
[1738174953846,0.54611255,102220.0,102210.0,0.0011423]
[1738174954589,0.51706124,102220.0,102210.0,0.0011423]
[1738174956923,0.51735986,102220.0,102210.0,0.0011423]
[1738174957066,0.40728378,102220.0,102210.0,0.0011423]
[1738174957467,0.43630661,102220.0,102210.0,0.0011423]
[1738174957731,0.44622258,102220.0,102210.0,0.0011423]
[1738174958259,0.55629866,102220.0,102210.0,0.0011423]
[1738174958460,0.54638269,102220.0,102210.0,0.0011423]
[1738174958668,0.43630661,102220.0,102210.0,0.0011423]
[1738174960690,0.54638269,102220.0,102210.0,0.0011423]
[1738174960904,0.43630661,102220.0,102210.0,0.0011423]
[1738174961109,0.18906345,102220.0,102210.0,0.0796423]
[1738174961318,0.04232145,102220.0,102210.0,0.2263983]
[1738174961529,0.18906345,102220.0,102210.0,0.2263983]
[1738174961733,0.01329862,102220.0,102210.0,0.22677195]
[1738174962175,0.16126349,102220.0,102210.0,0.2263983]
[1738174962384,0.01329862,102220.0,102210.0,0.22677195]
[1738174963045,0.16004062,102220.0,102210.0,0.22677195]
[1738174963455,0.04234448,102220.0,102210.0,0.22677195]
[1738174963851,0.04234448,102220.0,102210.0,0.2263983]
[1738174963996,0.18908648,102220.0,102210.0,0.22677195]
[1738174964411,0.04234448,102220.0,102210.0,0.22677195]
[1738174964830,0.18908648,102220.0,102210.0,0.22677195]
[1738174965033,0.18908648,102220.0,102210.0,0.2263983]
[1738174965234,0.18908648,102220.0,102210.0,0.22677195]
[1738174966035,0.04234448,102220.0,102210.0,0.22677195]
[1738174966589,0.16004062,102220.0,102210.0,0.22677195]
[1738174966774,0.16126352,102220.0,102210.0,0.14827195]
[1738174966991,0.16004062,102220.0,102210.0,0.14827195]
[1738174968292,0.18908648,102220.0,102210.0,0.14827195]
[1738174968467,0.04234448,102220.0,102210.0,0.14827195]
[1738174968649,0.18908648,102220.0,102210.0,0.14827195]
[1738174968852,0.18908648,102220.0,102210.0,0.00151595]
[1738174969488,0.19030944,102220.0,102210.0,0.0011423]
[1738174969686,0.2875526,102220.0,102210.0,0.0011423]
[1738174969832,0.28632964,102220.0,102210.0,0.0011423]
[1738174970766,0.43632964,102220.0,102210.0,0.0011423]
[1738174973703,0.40728378,102220.0,102210.0,0.0011423]
[1738174974120,0.67735986,102220.0,102210.0,0.0011423]
[1738174974327,0.6871644,102220.0,102210.0,0.0011423]
[1738174974990,0.6831644,102220.0,102210.0,0.0011423]
[1738174975142,0.6731644,102220.0,102210.0,0.0011423]
[1738174975351,0.6731644,102220.0,102210.0,0.0001423]
[1738174975352,0.6711644,102220.0,102210.0,0.0001423]
[1738174975569,0.6801644,102220.0,102210.0,0.0011423]
[1738174975806,0.69979075,102220.0,102210.0,0.0011423]
[1738174980056,0.46918832,102220.0,102210.0,0.0011423]
[1738174980238,0.42008832,102220.0,102210.0,0.0011423]
[1738174980667,0.5301644,102220.0,102210.0,0.0011423]
[1738174981094,0.3801644,102220.0,102210.0,0.0011423]
[1738174981305,0.27008832,102220.0,102210.0,0.0011423]
[1738174981518,0.42008832,102220.0,102210.0,0.0011423]
[1738174981727,0.5301644,102220.0,102210.0,0.0011423]
[1738174983697,0.42008832,102220.0,102210.0,0.0011423]
[1738174984124,0.41028378,102220.0,102210.0,0.0011423]
[1738174984937,0.41028378,102220.0,102210.0,0.1478983]
[1738174985162,0.41028378,102220.0,102210.0,0.2717983]
[1738174985163,0.01629862,102220.0,102210.0,0.2717983]
[1738174985363,0.16304062,102220.0,102210.0,0.2717983]
[1738174986366,0.18507811,102220.0,102210.0,0.2717983]
[1738174986776,0.18907811,102220.0,102210.0,0.2717983]
[1738174986985,0.18007811,102220.0,102210.0,0.2707983]
[1738174987189,0.27854419,102220.0,102210.0,0.0001423]
[1738174987395,0.61799735,102220.0,102210.0,0.0001423]
[1738174987604,0.65099735,102220.0,102210.0,0.0001423]
[1738174988498,0.65099735,102220.0,102210.0,0.0011423]
[1738174988499,0.65999735,102220.0,102210.0,0.0011423]
[1738174988701,0.63095986,102220.0,102210.0,0.0011423]
[1738174990459,0.64058621,102220.0,102210.0,0.0011423]
[1738174992600,0.65041527,102220.0,102210.0,0.0011423]
[1738174992796,0.73741436,102220.0,102210.0,0.0011423]
[1738174995264,0.84749044,102220.0,102210.0,0.0011423]
[1738174995465,0.89499044,102220.0,102210.0,0.0011423]
[1738174996207,0.78491436,102220.0,102210.0,0.0011423]
[1738174997665,0.89499044,102220.0,102210.0,0.0011423]
[1738174998961,0.89099044,102220.0,102210.0,3e-07]
[1738174999254,0.89099044,102220.0,102200.0,0.0001421]
[1738174999255,0.251156,102210.0,102200.0,0.0001421]
[1738174999468,0.56855132,102210.0,102200.0,0.0001421]
[1738175000047,0.45847524,102210.0,102200.0,0.0001421]
[1738175000465,0.45847524,102210.0,102200.0,0.00023601]
[1738175000834,0.38707524,102210.0,102200.0,0.00023601]
[1738175001677,0.37707524,102210.0,102200.0,0.00023601]
[1738175001855,0.38507524,102210.0,102200.0,0.00023601]
[1738175002083,0.54407524,102210.0,102200.0,0.00023601]
[1738175002278,0.62307433,102210.0,102200.0,0.00023601]
[1738175002475,0.61407433,102210.0,102200.0,0.00023601]
[1738175002821,0.62307433,102210.0,102200.0,0.00023601]
[1738175003155,0.63007433,102210.0,102200.0,0.00023601]
[1738175005306,0.54307524,102210.0,102200.0,0.00023601]
[1738175006749,0.55307524,102210.0,102200.0,0.00023601]
[1738175007262,0.59223024,102210.0,102200.0,0.00023601]
[1738175009753,0.58223024,102210.0,102200.0,0.00023601]
[1738175009962,0.80928943,102210.0,102200.0,0.00023601]
[1738175010170,0.79163267,102210.0,102200.0,0.00023601]
[1738175010386,0.83843267,102210.0,102200.0,0.00023601]
[1738175011041,0.82943267,102210.0,102200.0,0.00023601]
[1738175011230,0.82243267,102210.0,102200.0,0.00023601]
[1738175011363,0.68467667,102210.0,102190.0,9.601e-05]
[1738175011564,0.37831376,102200.0,102190.0,0.00057709]
[1738175011792,0.37709024,102200.0,102190.0,0.00057709]
[1738175012190,0.45769024,102200.0,102190.0,0.00057709]
[1738175014442,0.46469024,102200.0,102190.0,0.00057709]
[1738175014663,0.47369024,102200.0,102190.0,0.00057709]
[1738175016806,0.49286651,102200.0,102190.0,0.00057709]
[1738175017235,0.5798656,102200.0,102190.0,0.00057709]
[1738175019477,0.5092656,102200.0,102190.0,0.00057709]
[1738175020419,0.5854656,102200.0,102190.0,0.00057709]
[1738175020629,0.67282236,102200.0,102190.0,0.00057709]
[1738175021260,1.2754656,102200.0,102190.0,0.00057709]
[1738175022076,1.29509195,102200.0,102190.0,0.00057709]
[1738175023823,1.30518254,102200.0,102190.0,0.00057709]
[1738175024217,1.31518254,102200.0,102190.0,0.00057709]
[1738175024574,1.23898254,102200.0,102190.0,0.00057709]
[1738175024779,0.53898254,102200.0,102190.0,0.00057709]
[1738175027096,0.68898254,102200.0,102190.0,0.00057709]
[1738175027654,0.66935619,102200.0,102190.0,0.00057709]
[1738175027853,0.65017992,102200.0,102190.0,0.00057709]
[1738175029579,0.56318083,102200.0,102190.0,0.00057709]
[1738175030005,0.55318083,102200.0,102190.0,0.00057709]
[1738175030211,0.42010475,102200.0,102190.0,0.07957709]
[1738175030414,0.53018083,102200.0,102190.0,0.07957709]
[1738175030831,0.42010475,102200.0,102190.0,0.07957709]
[1738175033343,0.162771,102200.0,102190.0,0.27476209]
[1738175034053,0.162771,102200.0,102190.0,0.12797709]
[1738175034483,0.27407026,102200.0,102190.0,0.12797709]
[1738175034694,0.37009024,102200.0,102190.0,0.12797709]
[1738175035081,0.26001416,102200.0,102190.0,0.12797709]
[1738175036798,0.016,102200.0,102190.0,0.27476209]
[1738175037619,0.016,102200.0,102190.0,0.27513574]
[1738175037824,0.03802915,102200.0,102190.0,0.27513574]
[1738175038027,0.03302915,102200.0,102190.0,0.27513574]
[1738175038239,0.04202915,102200.0,102190.0,0.27513574]
[1738175038914,0.04229128,102200.0,102190.0,0.27513574]
[1738175039314,0.04229128,102200.0,102190.0,0.37513574]
[1738175041508,0.04229128,102200.0,102190.0,0.27513574]
[1738175042258,0.04229128,102200.0,102190.0,0.3723789]
[1738175042509,0.01329883,102200.0,102190.0,0.3723789]
[1738175042723,0.01329883,102200.0,102190.0,0.4723789]
[1738175042971,0.01329883,102200.0,102190.0,0.6223789]
[1738175043189,0.00929883,102200.0,102190.0,0.6223789]
[1738175043433,0.01129883,102200.0,102190.0,0.5223789]
[1738175043898,0.01129883,102200.0,102190.0,0.5334589]
[1738175044164,0.00929883,102200.0,102190.0,0.53308525]
[1738175044418,0.00029883,102200.0,102190.0,0.5344589]
[1738175044689,0.00029883,102200.0,102190.0,0.7364589]
[1738175044968,0.00029883,102200.0,102190.0,0.7594589]
[1738175045750,0.00029883,102200.0,102190.0,0.7584589]
[1738175045974,0.00029883,102200.0,102190.0,0.73420525]
[1738175046249,0.00129883,102200.0,102190.0,0.73720525]
[1738175047090,0.00129883,102200.0,102190.0,0.7375789]
[1738175049722,0.00129883,102200.0,102190.0,0.29033574]
[1738175049934,0.00129883,102200.0,102190.0,0.27876209]
[1738175051126,0.00029883,102200.0,102190.0,0.27613574]
[1738175051327,0.00129883,102200.0,102190.0,0.27813574]
[1738175051565,0.00129883,102200.0,102190.0,0.37813574]
[1738175051745,0.00029883,102200.0,102190.0,0.37513574]
[1738175051937,0.00029883,102200.0,102190.0,0.37713574]
[1738175052138,0.00029883,102200.0,102190.0,0.4753789]
[1738175052508,0.00029883,102200.0,102190.0,0.4743789]
[1738175052916,0.00029883,102200.0,102190.0,0.4753789]
[1738175053486,0.00029883,102200.0,102190.0,0.37776209]
[1738175053692,0.00029883,102200.0,102190.0,0.37813574]
[1738175055176,0.00029883,102200.0,102190.0,0.27776209]
[1738175055394,0.00029883,102200.0,102190.0,0.27813574]
[1738175056277,0.00029883,102200.0,102190.0,0.27776209]
[1738175056491,0.00029883,102200.0,102190.0,0.27813574]
[1738175058127,0.00029883,102200.0,102190.0,0.37813574]
[1738175058777,0.00029883,102200.0,102190.0,0.4753789]
[1738175059508,0.00029883,102200.0,102190.0,0.6253789]
[1738175062294,0.00029883,102200.0,102190.0,0.6363389]
[1738175063734,0.00029883,102200.0,102190.0,0.6593389]
[1738175063957,0.00029883,102200.0,102190.0,0.7593389]
[1738175064884,0.00029883,102200.0,102190.0,0.7563389]
[1738175065306,0.00129883,102200.0,102190.0,0.7583389]
[1738175065521,0.00129883,102200.0,102190.0,0.7593389]
[1738175065697,0.00129883,102200.0,102190.0,0.78979624]
[1738175065909,0.00129883,102200.0,102190.0,0.78879624]
[1738175066333,0.00029883,102210.0,102200.0,0.50084465]
[1738175066509,0.00029883,102210.0,102200.0,0.62854515]
[1738175067885,8.3e-07,102210.0,102200.0,1.35600507]
[1738175068099,8.3e-07,102210.0,102200.0,0.96940907]
[1738175068308,8.3e-07,102210.0,102200.0,0.96540907]
[1738175068526,8.3e-07,102210.0,102200.0,1.07668907]
[1738175068742,8.3e-07,102210.0,102200.0,1.07853997]
[1738175068945,0.00029862,102220.0,102210.0,0.39162965]
[1738175069148,0.00029862,102220.0,102210.0,0.48887281]
[1738175069408,6.2e-07,102220.0,102210.0,1.22193015]
[1738175070505,6.2e-07,102220.0,102210.0,0.75890889]
[1738175070747,6.2e-07,102220.0,102210.0,0.69933015]
[1738175071193,6.2e-07,102220.0,102210.0,0.70133015]
[1738175071412,0.00100062,102220.0,102210.0,0.70933015]
[1738175071626,0.00100062,102220.0,102210.0,1.36665415]
[1738175071851,6.2e-07,102220.0,102210.0,1.30788315]
[1738175072106,0.00100062,102220.0,102210.0,1.31888315]
[1738175072324,0.00100062,102220.0,102210.0,0.71033015]
[1738175072542,0.00100062,102220.0,102210.0,1.31888315]
[1738175072752,6.2e-07,102220.0,102210.0,1.31888315]
[1738175072968,6.2e-07,102220.0,102210.0,0.71033015]
[1738175073180,6.2e-07,102220.0,102210.0,0.75058817]
[1738175073399,6.2e-07,102220.0,102210.0,0.77980299]
[1738175073860,0.00029904,102260.0,102250.0,0.47607265]
[1738175074078,0.00029904,102260.0,102250.0,0.60703581]
[1738175074515,0.00029904,102260.0,102250.0,0.75703581]
[1738175075209,0.00039328,102260.0,102250.0,0.75803581]
[1738175077148,0.00039328,102260.0,102250.0,0.75703581]
[1738175077424,0.00039328,102260.0,102250.0,0.78625063]
[1738175077668,0.00039328,102260.0,102250.0,0.79325063]
[1738175078389,0.00039328,102260.0,102250.0,0.76403581]
[1738175079871,0.00039328,102260.0,102250.0,0.78380742]
[1738175080059,0.46675811,102290.0,102270.0,0.53812965]
[1738175080289,0.46685252,102290.0,102270.0,0.73368365]
[1738175081310,0.46785252,102290.0,102270.0,0.73368365]
[1738175081558,0.27232952,102290.0,102280.0,0.146656]
[1738175081981,0.46785152,102290.0,102270.0,0.53813165]
[1738175082427,0.46785152,102290.0,102270.0,0.73368365]
[1738175083069,0.46785152,102290.0,102270.0,0.53812965]
[1738175083281,0.51574252,102290.0,102270.0,0.14703165]
[1738175083490,0.66239152,102290.0,102270.0,0.34259165]
[1738175083704,0.65939152,102290.0,102270.0,0.34259165]
[1738175083910,0.146656,102280.0,102270.0,0.14703165]
[1738175084120,0.65739152,102290.0,102270.0,0.14703165]
[1738175084323,0.65839152,102290.0,102270.0,0.14703165]
[1738175084871,0.65739152,102290.0,102270.0,0.34259065]
[1738175085146,0.65739152,102290.0,102270.0,0.537777]
[1738175085351,0.65739152,102290.0,102270.0,0.14703165]
[1738175085559,0.65739152,102290.0,102270.0,0.34258965]
[1738175085758,0.001,102280.0,102270.0,0.19593165]
[1738175087095,0.11968652,102290.0,102280.0,0.146656]
[1738175087543,0.12068652,102290.0,102280.0,0.146656]
[1738175087756,0.26732752,102290.0,102280.0,0.146656]
[1738175087967,0.46185152,102290.0,102270.0,0.34257965]
[1738175088172,0.146656,102280.0,102270.0,0.19592165]
[1738175088384,0.65939352,102290.0,102270.0,0.34258565]
[1738175088767,0.65939352,102290.0,102270.0,0.00037365]
[1738175088995,0.146656,102280.0,102270.0,0.00037365]
[1738175089550,0.146656,102280.0,102270.0,0.14704365]
[1738175089764,0.80352268,102290.0,102270.0,0.14704365]
[1738175089977,0.75463868,102290.0,102270.0,0.34260265]
[1738175090178,0.75563868,102290.0,102270.0,0.34260265]
[1738175090645,0.95117368,102290.0,102270.0,0.34260265]
[1738175091288,0.75563868,102290.0,102270.0,0.34260265]
[1738175091495,0.75563768,102290.0,102270.0,0.34260265]
[1738175092489,0.95117168,102290.0,102270.0,0.34260265]
[1738175092778,0.146656,102280.0,102270.0,0.34260265]
[1738175092988,0.146656,102280.0,102270.0,0.14704365]
[1738175093948,0.147656,102280.0,102270.0,0.14704365]
[1738175097531,0.147656,102280.0,102270.0,0.00037365]
[1738175097707,0.147656,102280.0,102260.0,0.548287]
[1738175097917,0.44045516,102280.0,102260.0,0.34262565]
[1738175098112,0.63600716,102280.0,102260.0,0.342252]
[1738175098325,0.83156016,102280.0,102260.0,0.34262565]
[1738175098524,0.63600716,102280.0,102260.0,0.34262565]
[1738175098688,0.44045516,102280.0,102270.0,0.0001421]
[1738175099747,0.62603124,102280.0,102270.0,0.0001421]
[1738175099950,0.67103124,102280.0,102270.0,0.0001421]
[1738175100161,0.46306783,102290.0,102270.0,0.34273975]
[1738175100368,0.56031099,102290.0,102270.0,0.34273975]
[1738175100568,0.56031099,102290.0,102270.0,0.53829075]
[1738175100719,0.56031099,102290.0,102270.0,0.34273675]
[1738175100918,0.01816777,102280.0,102270.0,0.14718575]
[1738175101126,0.02016777,102280.0,102270.0,0.14718575]
[1738175101335,0.02016777,102280.0,102270.0,0.1468121]
[1738175101548,0.02016777,102280.0,102270.0,0.14718575]
[1738175101763,0.56031099,102290.0,102270.0,0.53829775]
[1738175101964,0.146656,102280.0,102270.0,0.00051575]
[1738175102171,0.14787813,102280.0,102270.0,0.0001421]
[1738175102384,0.146656,102280.0,102270.0,0.0001421]
[1738175103076,0.146656,102280.0,102270.0,0.1468121]
[1738175103424,0.56030999,102290.0,102270.0,0.53830275]
[1738175103628,0.00039283,102290.0,102280.0,0.146656]
[1738175105267,0.00039283,102290.0,102280.0,0.24702965]
[1738175105476,0.00139283,102290.0,102280.0,0.24702965]
[1738175107458,0.00139283,102290.0,102280.0,0.42487281]
[1738175108083,0.00139283,102290.0,102280.0,0.57487281]
[1738175110462,0.00039283,102290.0,102280.0,0.57487281]
[1738175110677,0.00039283,102290.0,102280.0,0.60794909]
[1738175110910,0.00039283,102290.0,102280.0,1.48712882]
[1738175111129,8.3e-07,102290.0,102280.0,1.26218882]
[1738175111345,0.00029883,102310.0,102300.0,0.62350065]
[1738175111544,0.00029883,102310.0,102300.0,0.75422381]
[1738175111771,0.00029883,102310.0,102300.0,0.7846918]
[1738175111996,0.00029883,102310.0,102300.0,0.84427054]
[1738175112629,0.00029883,102310.0,102300.0,2.37118454]
[1738175113077,0.00029883,102310.0,102300.0,2.38118454]
[1738175113304,8.3e-07,102310.0,102300.0,2.38118454]
[1738175113524,8.4e-07,102320.0,102310.0,2.27480439]
[1738175113742,8.8e-07,102330.0,102320.0,1.42753165]
[1738175113972,0.08690821,102340.0,102330.0,0.93731065]
[1738175114189,0.08739089,102340.0,102330.0,1.57715381]
[1738175114405,0.03073158,102340.0,102330.0,1.71400054]
[1738175114624,0.03073158,102340.0,102330.0,1.65724054]
[1738175114839,0.00048268,102340.0,102330.0,1.65724054]
[1738175115519,0.00048268,102340.0,102330.0,1.63077255]
[1738175116165,0.00048268,102340.0,102330.0,1.52077255]
[1738175116379,0.00048268,102340.0,102330.0,1.18710081]
[1738175116617,0.00048268,102340.0,102330.0,1.19710081]
[1738175116824,0.00048268,102340.0,102330.0,1.20620716]
[1738175117045,0.00048268,102340.0,102330.0,1.23694473]
[1738175117268,0.00048268,102340.0,102330.0,1.2657859]
[1738175117479,0.00048268,102340.0,102330.0,1.26615955]
[1738175117684,0.00048268,102340.0,102330.0,1.2657859]
[1738175117865,0.00048268,102340.0,102330.0,1.23657108]